Cogmind - Beta 17 @@@ ROGUE MODE // 2026.07.02 @ 16:17:25 // Winter2019/RPGLIKE Player: chai Result: Destroyed by 8V-S26(p) with EM Pulse Gun Performance ------------- Evolutions (0) 0 Regions Visited (3) 600 Robots Destroyed (25) 125 Value Destroyed (699) 699 Prototype IDs (12) 240 Alien Tech Used (0) 0 Bonus (756) 756 TOTAL SCORE: 2420 Bonus ------- Registered with UFD 300 Met Optimus in HQ 500 Friendly Fire -44 Cogmind --------- Core Integrity 0/950 Matter 290/300 Energy 19/150 System Corruption 3% Temperature Cool (26) Movement Walking (120) Location -7/Scraptown Parts ------- > --- POWER (1) -------- Light Angular Momentum Engine > --- PROPULSION (3) --- Improved Aluminum Leg Improved Aluminum Leg Improved Aluminum Leg > --- UTILITY (3) ------ Improved Shield Generator A0-MCA's Component Scanner > --- WEAPON (3) ------- Helical Railgun Rocket Launcher Companion Sword > --- INVENTORY (3) ---- High-capacity Matter Pod (155) Shock Bomb Launcher Remote Datajack Peak State ------------ > --- POWER ------------ Light Angular Momentum Engine > --- PROPULSION ------- Improved Aluminum Leg Improved Aluminum Leg Improved Aluminum Leg > --- UTILITY ---------- Microactuators Improved Shield Generator A0-MCA's Component Scanner > --- WEAPON ----------- Helical Railgun Rocket Launcher Companion Sword > --- INVENTORY -------- High-capacity Matter Pod Shock Bomb Launcher Remote Datajack [Rating: 45] Favorites ----------- Power Light Angular Momentum Engine Engine Light Angular Momentum Engine Propulsion Light Treads Treads Light Treads Leg Improved Aluminum Leg Utility High-capacity Matter Pod Device Improved Heat Sink Storage High-capacity Matter Pod Processor Improved Melee Analysis Suite Weapon Rocket Launcher Energy Gun Beamcaster Energy Cannon Beam Cannon Ballistic Gun Heavy Machine Gun Ballistic Cannon Light Cannon Launcher Rocket Launcher Slashing Weapon Companion Sword Piercing Weapon Spear Special Melee Weapon Datajack Build | -11 -10 -10 -7 ------- Run | Yrd Mat Sub Scr Slots Evolved 6 | 3 . 1 2 Power . | . . . . Propulsion 2 | 1 . . 1 Utility 2 | 1 . . 1 Weapon 2 | 1 . 1 . Parts Attached 31 | 6 9 4 12 Power 3 | 2 . 1 . Engine 3 | 2 . 1 . Core . | . . . . Reactor . | . . . . Propulsion 6 | 2 . 1 3 Treads 3 | 2 . 1 . Leg 3 | . . . 3 Wheel . | . . . . Hover . | . . . . Flight . | . . . . Utility 8 | . 4 . 4 Device 4 | . 2 . 2 Storage 2 | . 2 . . Processor 2 | . . . 2 Hackware . | . . . . Protection . | . . . . Artifact . | . . . . Weapon 14 | 2 5 2 5 Energy Gun 1 | . . 1 . Energy Cannon 1 | . 1 . . Ballistic Gun 5 | 2 . . 3 Ballistic Cannon 1 | . 1 . . Launcher 2 | . 2 . . Special Weapon . | . . . . Impact Weapon . | . . . . Slashing Weapon 2 | . . 1 1 Piercing Weapon 1 | . . . 1 Special Melee Weapon 1 | . 1 . . Unidentified Prototypes 1 | . . . 1 Parts Lost 1 | . . . 1 Power . | . . . . Propulsion . | . . . . Utility 1 | . . . 1 Weapon . | . . . . Highest Loss Streak 1 | . . . 1 To Critical Strikes . | . . . . Average Backups 1 | . . 1 2 Power . | . . . . Propulsion . | . . . . Utility . | . . . . Weapon . | . . . . Tool/Special . | . . . . Unused Backups 2 | . . . 2 Power . | . . . . Propulsion . | . . . . Utility . | . . . . Weapon 1 | . . . 1 Tool/Special 1 | . . . 1 Average Slot Usage (%) 98 | . 94 99 99 Engine 11 | . 14 12 11 Treads 21 | . 28 25 19 Leg 3 | . . . 5 Device 10 | . 12 12 8 Storage 11 | . 10 12 11 Processor 6 | . . . 9 Energy Gun 2 | . . 8 1 Ballistic Gun 6 | . 3 . 9 Ballistic Cannon 2 | . 8 3 . Launcher 11 | . 10 12 11 Slashing Weapon 5 | . . 10 6 Piercing Weapon 3 | . . . 4 Peak Build Rating 45 | 5 10 23 45 Average Rating 24 | 4 8 19 29 On Entrance 9 | . 5 10 23 Avg Prop Armor Cover (%) 6 | . . . 6 Naked Turns . | . . . . Heaviest Build 29 | 7 15 25 29 Greatest Support 40 | 40 40 40 40 Greatest Overweight (x) 8 | . . . 8 Average Overweight (x) . | . . . . Largest Inventory Capacity 3 | . 1 1 3 Average Capacity 2 | . . 1 2 Most Carried 3 | . 1 1 3 Average Carried 2 | . . 1 2 Final Capacity 3 | . 1 1 3 Final Carried 3 | . 1 1 3 Class Distribution -------------------- 100% | Mutant Dominant Class ---------------- Mutant | -10/Materials Mutant | -10/Subcaves Mutant | -7/Scraptown Resources | -11 -10 -10 -7 ----------- Run | Yrd Mat Sub Scr Matter Collected 929 | 260 431 102 136 Remotely . | . . . . Salvage Created 700 | . 322 . 378 Parts 44 | . 30 . 14 Haulers Intercepted . | . . . . Recyclers Shooed . | . . . . Parts Field Recycled . | . . . . Retrieved Matter . | . . . . Parts Self-Destructed 5 | . . 5 . Prevented . | . . . . Parts Restored . | . . . . Kills | -11 -10 -10 -7 ------- Run | Yrd Mat Sub Scr Combat Hostiles Destroyed 22 | . 13 1 8 Melee 6 | . . 1 5 Guns 4 | . 1 . 3 Cannons 8 | . 8 . . AOE 4 | . 4 . . Classes Destroyed 10 | . 5 1 4 Tunneler 1 | . 1 . . Operator 1 | . 1 . . Watcher 1 | . 1 . . Swarmer 6 | . 6 . . Grunt 7 | . 7 . . Sentry 1 | . . 1 . Bolteater 2 | . . . 2 Explorer 4 | . . . 4 Ranger 1 | . . . 1 Scrapper 1 | . . . 1 Best Kill Streak 8 | . 4 1 8 Combat Bots Only 8 | . 3 1 8 Max Kills in Single Turn 2 | . 2 1 1 Gunslinging . | . . . . Exploded 2 | . 2 . . Melee 1 | . . 1 1 Uniques/NPCs Destroyed . | . . . . Combat | -11 -10 -10 -7 -------- Run | Yrd Mat Sub Scr Hostile Shots Fired 160 | . 49 29 82 Missed 41 | . 13 9 19 Hits 119 | . 36 20 63 Melee 14 | . . . 14 Projectile 105 | . 36 20 49 AOE 2 | . . 2 . Critical Strikes 5 | . . 1 4 Damage Taken 1775 | . 464 488 823 Core 1429 | . 367 401 661 Absorbed by Shields 85 | . . . 85 Redirected to Core 1179 | . 306 322 551 Core Remaining (%) 100 | 100 . . . Volleys Fired 69 | . 36 21 12 Largest 2 | . 2 1 1 Hottest 90 | . 90 75 38 Shots Fired 84 | . 52 20 12 Gun 28 | . 9 7 12 Cannon 46 | . 35 11 . Launcher 10 | . 8 2 . Special . | . . . . Kinetic 42 | . 19 11 12 Thermal 32 | . 25 7 . Explosive 10 | . 8 2 . Electromagnetic . | . . . . Robot Hit Streak 5 | . 5 5 5 Robot Miss Streak 4 | . 4 3 2 Penetration Max 1 | . . . 1 Secondary Targets . | . . . . Shots Hit Robots 70 | . 29 17 24 Core Hits 40 | . 20 6 14 Critical Kills . | . . . . Critical Parts Destroyed 1 | . . . 1 Critical Strikes 1 | . . . 1 Destroy 1 | . . . 1 Melee Attacks 41 | . 1 18 22 Impact . | . . . . Slashing 40 | . . 18 22 Piercing . | . . . . Sneak Attacks 1 | . 1 . . Combat Hostiles . | . . . . Follow-up Attacks 2 | . . . 2 Damage Inflicted 1936 | . 824 504 608 Guns 378 | . 50 106 222 Cannons 472 | . 334 138 . Explosions 597 | . 440 157 . Melee 489 | . . 103 386 Ramming . | . . . . Kinetic 495 | . 135 138 222 Thermal 355 | . 249 106 . Explosive 597 | . 440 157 . Electromagnetic . | . . . . Impact . | . . . . Slashing 489 | . . 103 386 Piercing . | . . . . Highest Corruption 3 | . 2 2 3 Average Corruption 1 | . 2 2 1 Corruption Purged . | . . . . Corruption Blocked . | . . . . Effects 10 | . 3 6 1 Message Errors 1 | . 1 . . Matter Fused 3 | . . 2 1 Heat Flow Errors 1 | . 1 . . Energy Discharges 2 | . . 2 . Data Loss (minor) 1 | . . 1 . Misfires 1 | . 1 . . Weapon Failures 1 | . . 1 . Overload Shots . | . . . . Overflow Damage 23 | . 10 . 13 Projectiles . | . . . . Explosions 10 | . 10 . . Melee 13 | . . . 13 Knockbacks 2 | . . 2 . Impact . | . . . . Kinetic 1 | . . 1 . Secondary 1 | . . 1 . Self-Inflicted Damage 76 | . 76 . . Shots 3 | . 3 . . Rammed . | . . . . Targets Rammed . | . . . . Kicked . | . . . . Crushed . | . . . . Highest Temperature 240 | . 240 . 133 Average Temperature 71 | . 82 . 46 Received Heat Transfer 560 | . 114 123 323 Siege Activations . | . . . . Martial Activations . | . . . . Shielding Activations . | . . . . Robots Disrupted . | . . . . Combat Hostiles . | . . . . Robots Corrupted . | . . . . Combat Hostiles . | . . . . Parts Fried . | . . . . Impact Corruptions . | . . . . Robots Melted . | . . . . Combat Hostiles . | . . . . Parts Melted 3 | . 2 . 1 Heat Transferred 703 | . 518 185 . Parts Sabotaged . | . . . . Parts Stolen . | . . . . Parts Stripped . | . . . . Power Chain Reactions . | . . . . Alert | -11 -10 -10 -7 ------- Run | Yrd Mat Sub Scr Maximum Alert Level . | . . . . Low Security (%) 100 | 100 100 . . Level 1 . | . . . . Level 2 . | . . . . Level 3 . | . . . . Level 4 . | . . . . Level 5 . | . . . . High Security . | . . . . Max Security . | . . . . Peak Influence 171 | . 171 . . Initial . | . . . . Average 69 | . 73 . . Influence Increases 509 | . 459 50 . Destroy 0b10 Robot/C 280 | . 260 20 . Destroy 0b10 Robot/NC 15 | . 15 . . Destroy Leader 52 | . 52 . . Successful Hack 28 | . 28 . . Disable Machine 45 | . 45 . . Destroy Structure 59 | . 59 . . Lose Combat Pursuer 30 | . . 30 . Influence Decreases 509 | . 414 95 . Entered New Map 22 | . . 22 . Time Decay 487 | . 414 73 . Squads Dispatched 2 | . 2 . . Investigation . | . . . . Extermination . | . . . . Reinforcement 2 | . 2 . . Assault . | . . . . Garrison . | . . . . Intercept . | . . . . Searches Triggered . | . . . . Construction Impeded . | . . . . Haulers Reinforced . | . . . . Active Scanning Responses . | . . . . Cargo Convoy Interrupts . | . . . . Stealth | -11 -10 -10 -7 --------- Run | Yrd Mat Sub Scr Distress Signals 3 | . 3 . . Communications Jammed . | . . . . Distress Signals . | . . . . Times Spotted 46 | . 17 12 17 Peak Tracking Total 9 | . 3 5 9 Tactical Retreats 2 | . . 2 . Traps | -11 -10 -10 -7 ------- Run | Yrd Mat Sub Scr Traps Triggered 2 | . 2 . . Indirectly . | . . . . Trap Hack Attempts . | . . . . Triggered . | . . . . Disarmed . | . . . . Reprogrammed . | . . . . Reused . | . . . . Traps Extracted . | . . . . Installed . | . . . . Triggered . | . . . . Machines | -11 -10 -10 -7 ---------- Run | Yrd Mat Sub Scr Machines Disabled 5 | . 5 . . Max in Single Turn 1 | . 1 . . Machines Repaired . | . . . . Machines Dismantled . | . . . . Machines Sabotaged . | . . . . Overloaded Fab Kills . | . . . . Hacking | -11 -10 -10 -7 --------- Run | Yrd Mat Sub Scr Machines Accessed 14 | . 6 . 8 Terminals 5 | . 5 . . Fabricators . | . . . . Repair Stations . | . . . . Recycling Units 1 | . 1 . . Scanalyzers . | . . . . Garrison Access . | . . . . Total Hacks 62 | . 18 . 44 Successful 56 | . 12 . 44 Failed 6 | . 6 . . Catastrophic 1 | . 1 . . Database Lockouts . | . . . . Manual 2 | . . . 2 Terminals 16 | . 16 . . Fabricators . | . . . . Repair Stations . | . . . . Recycling Units 2 | . 2 . . Scanalyzers . | . . . . Garrison Access . | . . . . Terminal Hacks 55 | . 11 . 44 Record 43 | . . . 43 Robot Analysis 1 | . 1 . . Prototype ID Bank 1 | . 1 . . Open Door 1 | . . . 1 Emergency Access Points 3 | . 3 . . Terminal Index 1 | . 1 . . Alert Level 1 | . 1 . . Dispatch Records 1 | . 1 . . Hauler Manifests 2 | . 2 . . Zone Layout 1 | . 1 . . Fabricator Hacks . | . . . . Repair Station Hacks . | . . . . Recycling Unit Hacks 1 | . 1 . . Report Inventory 1 | . 1 . . Scanalyzer . | . . . . Garrison Access Hacks . | . . . . Unauthorized Hacks . | . . . . Terminals . | . . . . Fabricators . | . . . . Repair Stations . | . . . . Recycling Units . | . . . . Scanalyzers . | . . . . Garrison Access . | . . . . Data Cores Recovered . | . . . . Used . | . . . . Hacking Detections 5 | . 5 . . Full Trace Events 1 | . 1 . . Feedback Events . | . . . . Feedback Blocked . | . . . . Robot Schematics Acquired . | . . . . Robots Built . | . . . . Authchips . | . . . . Time . | . . . . Total Robot Build Rating . | . . . . Part Schematics Acquired . | . . . . Parts Built . | . . . . Authchips . | . . . . Time . | . . . . Total Part Build Rating . | . . . . Part Studies Acquired . | . . . . Parts Repaired . | . . . . Time . | . . . . Parts Recycled . | . . . . Recycled Matter . | . . . . Retrieved Matter . | . . . . Retrieved Components . | . . . . Parts Scanalyzed . | . . . . Part Schematics Acquired . | . . . . Parts Damaged . | . . . . Bothacking | -11 -10 -10 -7 ------------ Run | Yrd Mat Sub Scr Used RIF Installer . | . . . . Robots Hacked . | . . . . Non-combat . | . . . . Combat . | . . . . Robot Hacks Applied . | . . . . Relay Couplers Released . | . . . . Fabnet Peak Effective % . | . . . . Robots Rewired . | . . . . Allies Hacked . | . . . . Hacks Repelled . | . . . . Allies | -11 -10 -10 -7 -------- Run | Yrd Mat Sub Scr Total Allies . | . . . . Largest Group . | . . . . Highest-Rated Group . | . . . . Highest-Rated Ally . | . . . . Total Orders . | . . . . Ally Attacks . | . . . . Total Damage . | . . . . Kills . | . . . . Allies Corrupted . | . . . . Allies Melted 2 | . . . 2 Intel | -11 -10 -10 -7 ------- Run | Yrd Mat Sub Scr Active Infowar (turns) 223 | . 223 . . ECM 223 | . 223 . . Robot Analysis Total 1 | . 1 . . Derelict Logs Recovered . | . . . . Drone Launches . | . . . . Drone Recoveries . | . . . . Exploration | -11 -10 -10 -7 ------------- Run | Yrd Mat Sub Scr Turns Passed 5547 | 60 1064 669 3754 Spaces Moved 3346 | 33 587 335 2391 Core 4 | 1 . . 3 Treads 2850 | 32 587 335 1896 Legs 492 | . . . 492 Wheels . | . . . . Hover . | . . . . Flight . | . . . . Fastest Speed 50 | 50 160 160 120 Average Speed 154 | 156 160 160 152 Slowest Speed 450 | 160 160 160 450 Overloaded Moves . | . . . . Propulsion Burnouts . | . . . . Robots Hopped . | . . . . Potential Cave-ins . | . . . . Cave-ins Triggered . | . . . . Exploration Rate (%) 52 | 3 97 17 91 Regions Visited 3 Branch Regions 2 Pre-discovered Areas 3 | . . . 3 Known Exits Taken . | . . . . Unknown Exits Taken 3 | 1 1 1 . Scrap Searched 4 | . . . 4 Spaces Dug 5 | . 4 1 . Terrain Destroyed 84 | . 59 23 2 Melee 1 | . . 1 . Projectile 2 | . . . 2 AOE 81 | . 59 22 . Terrain Rammed . | . . . . Walls Destroyed . | . . . . Machines Disabled . | . . . . Actions | -11 -10 -10 -7 --------- Run | Yrd Mat Sub Scr Total 3604 | 39 661 430 2474 Wait 71 | . 13 34 24 Move 3343 | 32 586 334 2391 Hop . | . . . . Pick Up 5 | . 1 . 4 Fast Attach 25 | 6 7 2 10 Attach . | . . . . Detach . | . . . . Swap 7 | . 3 2 2 Drop 21 | 1 6 3 11 Fire 69 | . 36 21 12 Melee 39 | . 1 18 20 Ram . | . . . . Kick . | . . . . Crush . | . . . . Escape Stasis . | . . . . Rewire . | . . . . Trap . | . . . . Miscellaneous 24 | . 8 16 . Route ------- -11/Scrapyard -10/Materials (discovered 6 exits: [*Mat x3] / [*Min x2] / [*Sub]) -10/Subcaves (discovered 2 exits: [*Mat] / *Scr) -7/Scraptown (discovered 2 exits: [*Fac x2]) History --------- Turn | Location | Event 7 | -11/Scrapyard | Upgraded with Propulsion slot (x1) 7 | -11/Scrapyard | Upgraded with Utility slot (x1) 7 | -11/Scrapyard | Upgraded with Weapon slot (x1) 19 | -11/Scrapyard | Discovered new exit (range 15) 61 | -11/Scrapyard | Entered Materials 273 | -10/Materials | Discovered new exit (range 15) 301 | -10/Materials | Build established: Mutant 375 | -10/Materials | Discovered new exit (range 8) 593 | -10/Materials | Discovered new exit (range 3) 649 | -10/Materials | Discovered new exit (range 16) 661 | -10/Materials | Derelicts attacked the area 672 | -10/Materials | Reached level 2 953 | -10/Materials | Discovered new exit (range 6) 1116 | -10/Materials | Discovered new exit (range 4) 1125 | -10/Materials | Entered Subcaves 1126 | -10/Subcaves | Approached by a straggling Scientist 1170 | -10/Subcaves | Shifting Twisted Machinery released Spk. Treads 1211 | -10/Subcaves | Shifting Twisted Machinery released Mak. Sword 1229 | -10/Subcaves | Upgraded with Weapon slot (x1) 1257 | -10/Subcaves | Ambushed by swarm of Subdwellers 1304 | -10/Subcaves | Lost 3 allies 1448 | -10/Subcaves | A swath of the cavern ceiling suddenly collapsed 1614 | -10/Subcaves | Scientist uncovered a shortcut to Scraptown 1750 | -10/Subcaves | Discovered new exit (range 8) 1794 | -10/Subcaves | Entered Scraptown 1796 | -7/Scraptown | Reached level 3 1801 | -7/Scraptown | System corruption cleaned by C-Scrubber 2256 | -7/Scraptown | Discovered new exit (range 3) 2440 | -7/Scraptown | Visited Cyclists 2486 | -7/Scraptown | Visited Awakened 2538 | -7/Scraptown | Visited Spacefarers 2603 | -7/Scraptown | Visited Science Testing Area 2813 | -7/Scraptown | Visited TADAMA 2851 | -7/Scraptown | Visited Fellowship of the Rings 2864 | -7/Scraptown | Visited Scrapoid Research Area 2936 | -7/Scraptown | Visited UFD Registry 2936 | -7/Scraptown | Registered with UFD as "Technobucket" 2998 | -7/Scraptown | Entered Cyclist Reading Room 3005 | -7/Scraptown | Learned location of Zion (-6) 3112 | -7/Scraptown | Visited Junk Repository 3123 | -7/Scraptown | Upgraded with Utility slot (x1) 3176 | -7/Scraptown | Visited Abandonware Association 3193 | -7/Scraptown | Learned abandonware demo "MELTYB.EXE" 3193 | -7/Scraptown | Learned abandonware demo "SHUTEYE.EXE" 3264 | -7/Scraptown | Visited Sword Containment 3289 | -7/Scraptown | Found Prototype Slashing Weapon 3289 | -7/Scraptown | Identified Companion Sword 4216 | -7/Scraptown | Visited Junk Repository 4264 | -7/Scraptown | Visited Scrap Suit Storage 4317 | -7/Scraptown | Visited A0-MCA Data Center 4326 | -7/Scraptown | Given an A rating by A0-MCA 4331 | -7/Scraptown | Found A0-MCA's Component Scanner 4353 | -7/Scraptown | Visited Cartography Club 4810 | -7/Scraptown | Discovered new exit (range 5) 4865 | -7/Scraptown | Visited Supply Room 4882 | -7/Scraptown | Upgraded with Propulsion slot (x1) 4913 | -7/Scraptown | Visited Chapter 10 4985 | -7/Scraptown | Visited Junk Cannon Lab 5365 | -7/Scraptown | Met Optimus 5365 | -7/Scraptown | Accepted into 0bPrime 5452 | -7/Scraptown | Civil war broke out across Scraptown 5482 | -7/Scraptown | Core integrity fell below 50% 5504 | -7/Scraptown | Core integrity fell below 20% 5538 | -7/Scraptown | Destroyed 8 combat bots 5548 | -7/Scraptown | Destroyed by 8V-S26(p) with EM Pulse Gun Last Messages --------------- 05509_ ZK-6J0(x): "Stop this nonsense!" 05510_ HV-WCO(j) heat short circuits Mak. Salvage Targeting Computer. 05511_ QP-EQB(g) system terminally corrupted. 05514_ RC-RIP(b) heat short circuits Lgt. Treads. 05515_ RC-RIP(b) destroyed. 05515_ Machine disabled. 05517_ ZK-6J0(x) destroyed. Companion Sword: "You sure know how to make a sword happy." 05526_ Slug penetrates Wall. 05533_ Upgraded: Core Integrity (+150) 05537_ Critical hit (Burn: +37). 05541_ Microactuators destroyed. 05543_ Critical hit (Burn: +37). 05544_ Destroyed Lrg. Battery. 05546_ Companion Sword surprise attacks HV-WCO(j). 05547_ Critical hit (Burn: +50). Map ----- +----------------------------------------------------+ | ?????????????????????????????????????????????????? | | ?????????????????????????????????????????????????? | | ?????????????????????????????????????????????????? | | ?????????????????????????????????????????????????? | | ?????????????????????????????????????????????????? | | ????????????????????#???????#####????????????????? | | ???????????????????? ???????#"""#????????????????? | | ################???#"##?????#" "#????????????????? | | ##"""##""|##"""#??##[*##????# < #????????????????? | | ##"" ##""|##!!"####=%[!###### ##???????????????? | | !%= #???????????????? | | =![[ #???????????????? | | ###################!*! ###########???????????????? | | ??????????????????#" =##?????????????????????????? | | ???????????????????# !#??????????????????????????? | | #########??????????# #??????????###?????????????? | | """"""""#??????????# #???????#### #?????????????? | | " #??????????# #???????# # #?????????????? | | ""#??????????#=/#???????## # #?????????????? | | ""############[!#?????### #?????????????? | | """"##= ="""!##%%#?????#X#### #?????????????? | | " ""## ""= "!##=*#?????### ## #?????????????? | | """"## "" !##=%#?????# #?????????????? | | ""## "" "##=[####### ######?????????????? | | "##" " ##[!# g #?????????????? | | ##" ##/=# p@ #?????????????? | | ## ########### #####=!#;j###########?????????????? | | ## ########### #####%!#;h#############???????????? | | "" """"""""""" """""!% = "##""""""""""#??????????? | | ! !j=%=!"## """""""""#??????????? | | [=!% "## """""""""#??????????? | | "## " !""""#??????????? | | "## """"#??????????? | | """"#??????????? | | """""""""""""""""" " "## """""""""#??????????? | | """""""""""""""""""" "## ""!""""""#??????????? | | ################"" "## """""""""???????????? | | ##????????#"" "############???????????? | | X"#????????#"" %"## #"""""#?????????????? | | "" ##????????#"" [/%"## ! !!#?????????????? | | "" X"#??????###"" ==%*"## ##"#??????????? | | " ######### #""=!%!!"## X" #??????????? | | "" !%[[%= #??????????? | | "" %!==! "## #??????????? | | " ######### #""! "## !! ! !#??????????? | | "" ""#??????###"" "## #"""""#""#??????????? | | "" ##????????#"" "#############??????????? | | X"#????????#"" "#??????????????????????? | | ##????????#"" "#??????????????????????? | | ################"" "########???????????????? | +----------------------------------------------------+ Best States ------------- Heat Dissipation 39 Energy Generation 18 Energy Capacity 250 Matter Stores 500 Matter Capacity 500 Sight Range 16 Terrain Scan Density 10 ECM Strength 1 Melee Speed Boost 20 Evasion (%) 55 Melee Accuracy 6 Recoil Reduction 2 Item Schematics ----------------- None Robot Schematics ------------------ None Fabricated ------------ Nothing Repaired ---------- Nothing Studied --------- None Alien Tech Used ----------------- None Achievements -------------- None Challenges ------------ None RPGLIKE | -11 -10 -10 -7 --------- Run | Yrd Mat Sub Scr Levels Raised 2 | . 1 . 1 XP Earned 6775 | 3000 1775 1100 900 XP Spent 5985 | 1500 410 800 3275 Upgrades 17 | 3 5 1 8 Propulsion Slot 2 | 1 . . 1 Utility Slot 2 | 1 . . 1 Weapon Slot 2 | 1 . 1 . Core Integrity 7 | . 4 . 3 Inventory Capacity 3 | . 1 . 2 Melee Accuracy 1 | . . . 1 Protomatter Created 306 | . 88 8 210 Integrity Restored 474 | . 153 321 . Core 474 | . 153 321 . Protomatter Decayed 1411 | . 21 5 1385 Game ------ Seed TeleporterPiercingPick Manual? 0 Play Time 01:04:57 Cumulative 49.4 hours Start 2026.07.02 @ 02:26:30 End 2026.07.02 @ 16:17:25 Sessions 3 Manual Loads 0 Difficulty Rogue Special Mode Winter2019/RPGLIKE Game No. 30 Rogue 30 Adventurer 0 Explorer 0 Win Type - Total 0 Types 0/0/0/0/0/0/0/0/0/0 Lore% 36 Gallery% 28 Achievement% 25 Wizard Run 0 Options --------- Layout 2 ASCII 0 Keyboard 0 Movement Numpad Keybinds 0 Fullscreen 1 Font 24/Smallcaps Map View 50x44 Zoom Use 0% Tactical HUD 1 Map Filters NONE Filters NONE Steam 1 RUN: 0e2dc828-1117-4eac-abeb-221972905a99